{"text_format":"1","workbook":"xlsx","n_sheets":1,"sheets":["Teilnahme-Liste"],"not_rendered":{"charts":0,"images":1,"macros":1,"external_links":0,"defined_names":2,"comments":0,"pivot_tables":0},"unopened":[],"bounds":{"document_bytes":16777216,"sheet_cells":100000,"rows_first":2000,"rows_last":500,"rows_between":2000,"halvings":0,"cell_chars":16384,"cell_head_chars":4096},"cells_cut":0,"cells_raw":0,"read":"whole","date_system":"1900"}

{"sheet":"Teilnahme-Liste","index":0,"n_rows":51,"n_cols":25,"rows_kept":51,"cut":false,"hidden":false,"merged":[[0,1,0,4],[3,5,3,6],[10,15,11,15],[0,8,0,9],[9,14,11,14],[8,5,8,8],[9,15,9,16],[10,16,11,16],[48,2,48,11],[9,2,11,2],[32,1,42,10],[9,1,11,1],[9,3,11,3]]}
[null,"ANLAGE - Teilnehmenden-/Qualifizierungsplan"]
[]
[null,null,"Stammdaten:"]
[null,null,"Antrags-Nr. (falls bereits bekannt):"]
[null,null,"Name des Unternehmens/Vereins/Trägers KJH:"]
[null,null,"Einstufung des Unternehmens/Vereins/Trägers KJH:"]
[null,null,"Brbg. Servicepaket mit besonders erheblicher arbeitspolitischer Bedeutung?:"]
[]
[null,null,null,"Bitte erzänzen Sie erst die Zeilen und dann die Spalten."]
[null,"Zahl der Teilnehmenden","Personalnummer des/der Teilnehmenden","Tätigkeit im Unternehmen/Verein","Qualifizierung 1\n\n\n (Zeitraum/Thema/\nAusgaben pro TN)","Qualifizierung 2 \n\n\n(Zeitraum/Thema/\nAusgaben pro TN)","Qualifizierung 3 \n\n\n(Zeitraum/Thema/\nAusgaben pro TN)","Qualifizierung 4\n\n\n (Zeitraum/Thema/\nAusgaben pro TN)","Qualifizierung 5 \n\n\n(Zeitraum/Thema/\nAusgaben pro TN)","Qualifizierung 6 \n\n\n(Zeitraum/Thema/\nAusgaben pro TN)","Qualifizierung 7 \n\n\n(Zeitraum/Thema/\nAusgaben pro TN)","Qualifizierung 8\n\n\n (Zeitraum/Thema/\nAusgaben pro TN)","Qualifizierung 9 \n\n\n(Zeitraum/Thema/\nAusgaben pro TN)","Qualifizierung 10\n\n\n (Zeitraum/Thema/\nAusgaben pro TN)","Gesamt-Ausgaben pro TN","Finanzierung"]
[null,null,null,null,null,null,null,null,null,null,null,null,null,null,null,"Fördermittel ","Eigenmittel ",null,null,null,null,null,null,0.5,0.6]
[null,null,null,null,null,null,null,null,null,null,null,null,null,null,null,null,null,null,null,null,null,null,null,0.5,0.6]
[null,{"$f":"IF(C13<>\"\",1,0)","v":0},null,null,null,null,null,null,null,null,null,null,null,null,{"$f":"SUM(E13:N13)","v":0},{"$f":"IF($D$6=\"kleines Unternehmen und mittleres Unternehmen\",O13*0.6,O13*0.5)","v":0},{"$f":"O13-P13","v":0},null,null,null,null,null,null,0.5,0.6]
[null,{"$f":"IF(C14<>\"\",B13+1,0)","v":0},null,null,null,null,null,null,null,null,null,null,null,null,0,{"$f":"IF($D$6=\"kleines Unternehmen und mittleres Unternehmen\",O14*0.6,O14*0.5)","v":0},{"$f":"O14-P14","v":0},null,null,null,null,null,null,0.5,0.6]
[null,{"$f":"IF(C15<>\"\",B14+1,0)","v":0},null,null,null,null,null,null,null,null,null,null,null,null,0,0,{"$f":"O15-P15","v":0},null,null,null,null,null,null,0.5,0.6]
[null,0,null,null,null,null,null,null,null,null,null,null,null,null,0,0,{"$f":"O16-P16","v":0},null,null,null,null,null,null,0.5,0.6]
[null,0,null,null,null,null,null,null,null,null,null,null,null,null,0,0,0,null,null,null,null,null,null,0.5,0.6]
[null,0,null,null,null,null,null,null,null,null,null,null,null,null,0,0,0,null,null,null,null,null,null,0.5,0.6]
[null,0,null,null,null,null,null,null,null,null,null,null,null,null,0,0,0,null,null,null,null,null,null,0.5,0.6]
[null,0,null,null,null,null,null,null,null,null,null,null,null,null,0,0,0,null,null,null,null,null,null,0.5,0.6]
[null,0,null,null,null,null,null,null,null,null,null,null,null,null,0,0,0,null,null,null,null,null,null,0.5,0.6]
[null,0,null,null,null,null,null,null,null,null,null,null,null,null,0,0,0,null,null,null,null,null,null,0.5,0.6]
[null,0,null,null,null,null,null,null,null,null,null,null,null,null,0,0,0,null,null,null,null,null,null,0.5,0.6]
[null,0,null,null,null,null,null,null,null,null,null,null,null,null,0,0,0,null,null,null,null,null,null,0.5,0.6]
[null,{"$f":"IF(C25<>\"\",B24+1,0)","v":0},null,null,null,null,null,null,null,null,null,null,null,null,0,0,0,null,null,null,null,null,null,0.5,0.6]
[null,{"$f":"IF(C26<>\"\",B25+1,0)","v":0},null,null,null,null,null,null,null,null,null,null,null,null,0,0,{"$f":"O26-P26","v":0},null,null,null,null,null,null,0.5,0.6]
[null,{"$f":"IF(C27<>\"\",B26+1,0)","v":0},null,null,null,null,null,null,null,null,null,null,null,null,0,0,{"$f":"O27-P27","v":0},null,null,null,null,null,null,0.5,0.6]
[null,{"$f":"IF(C28<>\"\",B27+1,0)","v":0},null,null,null,null,null,null,null,null,null,null,null,null,{"$f":"SUM(E28:N28)","v":0},{"$f":"IF($D$6=\"kleines Unternehmen und mittleres Unternehmen\",O28*0.6,O28*0.5)","v":0},{"$f":"O28-P28","v":0},null,null,null,null,null,null,0.5,0.6]
[null,0,null,null,null,null,null,null,null,null,null,null,null,null,0,0,0,null,null,null,null,null,null,0.5,0.6]
[null,null,"Summe:",null,{"$f":"SUM(E13:E29)","v":0},0,0,0,0,0,0,0,0,{"$f":"SUM(N13:N29)","v":0},0,0,0]
[]
[]
[]
[]
[]
[]
[]
[]
[]
[]
[]
[]
[]
[]
[]
[]
[]
[]
[]
[]
[null,null,"kleines Untern./Verein/Träger KJH","mittleres Untern./Verein/Träger KJH","großes Untern./Verein/Träger KJH","nicht wirtschaftlich tätiger Verein"]